bitfinex/quotes_ETHUSD_20240602
["timestamp","ask_amount","ask_price","bid_price","bid_amount"]
[1717321736505,0.02506295,3776.3,3775.4,1.342]
[1717321736506,2.64879,3775.3,3773.6,2.64997]
[1717321736698,2.64879,3775.3,3774.0,2.64968]
[1717321736909,2.67233642,3775.3,3774.0,2.64968]
[1717321737689,5.67233642,3775.3,3774.0,2.64968]
[1717321737884,5.67233642,3775.3,3774.2,2.3576]
[1717321738186,0.02354642,3775.3,3775.0,1.342]
[1717321738398,2.64824,3776.1,3775.2,0.79385647]
[1717321738716,2.64824,3776.1,3775.3,0.55]
[1717321738922,2.64824,3776.1,3775.2,0.79385647]
[1717321739277,2.64824,3776.1,3775.3,0.55]
[1717321739716,2.64824,3776.1,3775.2,0.0996877]
[1717321739965,2.64851,3775.8,3775.2,0.0996877]
[1717321740260,3.0,3775.7,3775.2,0.0996877]
[1717321741237,3.0,3775.7,3775.3,0.55]
[1717321742068,3.0,3775.7,3775.2,0.0996877]
[1717321742225,2.64862,3775.6,3775.2,0.0996877]
[1717321742559,3.0,3775.5,3775.2,0.0996877]
[1717321743770,3.0,3776.0,3775.3,0.55]
[1717321744919,2.64841,3775.9,3775.2,0.0996877]
[1717321745258,3.05296451,3775.8,3775.2,0.0996877]
[1717321745457,0.05296451,3775.8,3775.2,0.0996877]
[1717321745921,1.59118257,3776.0,3775.2,0.0996877]
[1717321746116,0.0235447,3775.7,3775.2,0.0996877]
[1717321746361,2.6720647,3775.7,3775.2,0.0996877]
[1717321746659,3.02343265,3775.6,3775.2,0.0996877]
[1717321746847,3.02343265,3775.6,3775.3,0.55]
[1717321748052,3.02343265,3775.6,3775.2,0.0996877]
[1717321748256,2.64866,3775.5,3775.2,0.0996877]
[1717321748421,3.0,3775.4,3775.2,0.0996877]
[1717321748618,3.02506695,3775.4,3775.2,0.0996877]
[1717321749256,0.02506695,3775.4,3775.2,0.0996877]
[1717321749557,7.31875514,3775.8,3775.3,1.342]
[1717321749725,7.31875514,3775.8,3775.4,0.55]
[1717321750749,7.31875514,3775.8,3775.3,0.55]
[1717321751624,7.31875514,3775.8,3775.4,2.2509]
[1717321752157,3.0,3776.2,3775.4,2.2509]
[1717321752327,3.0,3776.2,3775.5,3.19864]
[1717321752933,7.31875514,3776.3,3775.5,3.19864]
[1717321753173,7.31875514,3776.3,3775.8,2.64841]
[1717321753339,7.31875514,3776.3,3776.0,1.342]
[1717321753540,8.90915921,3776.9,3776.1,0.55]
[1717321753761,0.57250237,3776.8,3776.1,0.55]
[1717321753931,0.57250237,3776.8,3776.1,3.1982]
[1717321754128,0.59922147,3776.8,3776.1,3.1982]
[1717321754341,0.0267191,3776.8,3776.1,3.1982]
[1717321754979,2.18965603,3776.8,3776.1,3.1982]
[1717321755294,2.18965603,3776.8,3776.4,2.64798]
[1717321755441,0.0267191,3776.8,3776.4,2.64798]
[1717321757878,0.0267191,3776.8,3776.6,2.64788]
[1717321758645,0.0267191,3776.8,3776.7,1.892]
[1717321758845,1.59040407,3777.7,3776.9,2.64764]
[1717321759153,1.59040407,3777.8,3777.1,2.64748]
[1717321759357,1.59040407,3777.9,3777.2,0.55]
[1717321759772,1.59040407,3777.9,3777.3,2.64739]
[1717321760282,0.57240047,3777.9,3777.3,2.64739]
[1717321760679,2.16280454,3777.9,3777.3,2.64739]
[1717321760842,3.57240047,3777.9,3777.3,2.64739]
[1717321761076,3.0,3777.9,3777.3,2.64739]
[1717321761284,3.0,3778.0,3777.3,2.64739]
[1717321762379,3.0,3778.0,3777.5,2.64721]
[1717321766217,3.0,3778.0,3777.2,2.8009]
[1717321768716,3.0,3778.0,3776.6,2.64784]
[1717321769820,2.64709,3777.8,3776.9,2.64762]
[1717321769974,3.0,3777.7,3777.0,0.55]
[1717321770287,3.0,3777.7,3777.0,0.924762]
[1717321770492,7.31875514,3778.1,3777.0,0.924762]
[1717321770723,7.31875514,3778.1,3777.7,2.64705]
[1717321770887,1.5897467,3778.4,3777.8,0.55]
[1717321771109,0.57231112,3778.5,3777.8,0.55]
[1717321771715,2.64666,3778.4,3777.3,2.64736]
[1717321772030,2.64666,3778.4,3777.5,2.64722]
[1717321772329,3.0,3778.3,3777.6,0.55]
[1717321774694,2.64681,3778.2,3777.3,0.513716]
[1717321775009,2.64681,3778.2,3777.1,5.13728]
[1717321775010,3.0,3778.1,3777.4,0.55]
[1717321775215,2.64697,3778.0,3777.1,5.13728]
[1717321775378,2.64705,3777.8,3777.1,2.64748]
[1717321775568,3.0,3778.1,3777.1,2.64748]
[1717321775782,3.0,3778.1,3777.1,2.912228]
[1717321776277,2.64691,3778.0,3777.1,2.912228]
[1717321776474,3.0,3777.9,3777.1,2.912228]
[1717321776769,3.0,3777.9,3777.2,0.55]
[1717321777492,2.64706,3777.8,3777.1,2.64748]
[1717321782485,4.5897467,3777.9,3777.1,2.64748]
[1717321782804,3.0,3777.8,3777.1,2.64748]
[1717321782967,1.5897467,3778.0,3777.1,2.912228]
[1717321783171,2.16205081,3778.0,3777.3,2.64736]
[1717321783991,1.5897467,3777.9,3777.3,2.64736]
[1717321784475,1.5897467,3777.8,3777.3,2.64736]
[1717321784671,1.5897467,3777.9,3777.6,2.64717]
[1717321784892,0.57230411,3778.1,3777.8,2.64704]
[1717321785069,0.57230411,3778.1,3777.9,0.55]
[1717321785387,8.90850184,3778.2,3777.9,0.55]
[1717321785717,0.57223775,3778.1,3778.0,2.6469]
[1717321785875,8.90850184,3778.2,3778.0,3.1969]
[1717321785876,7.31875514,3778.2,3778.0,3.1969]
[1717321786999,1.5897467,3778.4,3778.0,3.1969]
[1717321787688,1.5897467,3778.4,3778.1,0.55]
[1717321787888,2.16193408,3778.4,3778.1,0.55]
[1717321788088,1.5897467,3778.4,3778.2,2.64676]
[1717321788702,1.5897467,3778.5,3778.2,2.64676]
[1717321789093,2.16193408,3778.5,3778.2,2.64676]
[1717321789290,1.5897467,3778.5,3778.2,2.64676]
[1717321790028,0.57218738,3778.7,3778.2,2.64676]
[1717321790489,2.16193408,3778.7,3778.3,0.55]
[1717321791331,0.57218738,3778.7,3778.3,0.55]
[1717321791621,11.90850184,3778.8,3778.3,0.55]
[1717321791818,10.31875514,3778.8,3778.3,0.55]
[1717321792213,11.90850184,3778.8,3778.3,0.55]
[1717321792813,1.92257965,3778.7,3778.3,0.55]
[1717321793123,1.92257965,3778.6,3778.3,0.55]
[1717321793421,1.92257965,3778.5,3778.3,0.55]
[1717321793626,1.5897467,3778.9,3778.3,0.55]
[1717321793815,1.92257602,3778.8,3778.3,0.55]
[1717321794012,1.92257602,3778.7,3778.3,0.55]
[1717321794219,1.92257602,3778.6,3778.3,0.55]
[1717321794426,3.0,3778.8,3778.3,0.55]
[1717321794618,1.92247975,3778.7,3778.3,0.55]
[1717321794816,1.92247975,3778.6,3778.3,0.55]
[1717321795125,3.0,3778.8,3778.3,0.55]
[1717321795301,1.92248451,3778.7,3778.4,2.6466]
[1717321795504,1.92248451,3778.6,3778.5,0.55]
[1717321795933,0.02321824,3778.6,3778.5,0.55]
[1717321796229,1.5897467,3778.8,3778.5,0.55]
[1717321796430,0.02318779,3778.6,3778.4,2.6466]
[1717321796629,2.16191333,3778.9,3778.4,2.6466]
[1717321796931,0.02317419,3778.5,3778.4,2.6466]
[1717321797136,1.5897467,3778.9,3778.4,3.66545304]
[1717321797343,0.02482949,3778.5,3778.4,3.1966]
[1717321797520,1.5897467,3778.9,3778.4,3.1966]
[1717321797730,2.16188864,3778.9,3778.4,3.1966]
[1717321798032,3.57214194,3778.9,3778.4,3.1966]
[1717321798339,3.0,3778.9,3778.4,3.1966]
[1717321798542,4.5897467,3779.0,3778.4,3.1966]
[1717321798726,4.5897467,3779.0,3776.9,5.07641]
[1717321798727,1.5897467,3778.8,3776.9,5.07641]
[1717321798924,0.05296451,3778.7,3777.0,0.264761]
[1717321799336,0.62510828,3778.7,3777.0,0.264761]
[1717321799672,6.27158828,3778.7,3777.6,2.64712]
[1717321799938,5.69944451,3778.7,3777.6,2.64712]
[1717321800136,5.69944451,3778.7,3777.7,0.55]
[1717321800335,7.28919121,3778.7,3777.7,0.55]
[1717321801101,7.28919121,3778.7,3777.8,0.319712]
[1717321801418,0.57220934,3778.6,3777.9,3.19695]
[1717321801752,5.64648,3778.7,3777.9,3.19695]
[1717321801916,5.64648,3778.7,3778.0,0.5945462]
[1717321802240,5.64648,3778.7,3778.1,0.55]
[1717321805811,7.2362267,3778.7,3778.1,0.55]
[1717321806010,5.64648,3778.7,3778.1,0.55]
[1717321806445,0.57219643,3778.6,3778.1,0.55]
[1717321806643,0.57219643,3778.6,3778.1,1.20400082]
[1717321806813,5.64648,3778.7,3778.1,1.20400082]
[1717321807207,3.0,3778.7,3778.1,1.20400082]
[1717321807407,3.0,3778.8,3778.1,1.20400082]
[1717321807644,5.16191588,3778.8,3778.1,1.20400082]
[1717321807809,4.5897467,3778.8,3778.1,1.20400082]
[1717321808654,3.0,3778.8,3778.2,3.03183508]
[1717321808873,3.0,3778.8,3778.3,0.55]
[1717321810155,7.31875514,3778.9,3778.3,0.55]
[1717321810353,1.5897467,3779.0,3778.3,0.55]
[1717321810535,1.5897467,3778.9,3778.3,0.97358359]
[1717321810731,5.16189257,3778.9,3778.3,0.97358359]
[1717321810946,0.57214587,3778.8,3778.3,0.97358359]
[1717321811269,2.16189257,3778.8,3778.3,0.97358359]
[1717321811766,4.5897467,3778.9,3778.3,0.97358359]
[1717321812126,1.5897467,3778.9,3778.3,0.97358359]
[1717321812438,2.16189189,3778.9,3778.3,0.97358359]
[1717321812651,2.16189189,3778.9,3778.4,0.42743244]
[1717321814262,1.5897467,3778.8,3778.4,0.42743244]
[1717321814475,2.16189189,3778.8,3778.4,0.42743244]
[1717321814628,1.5897467,3778.8,3778.4,0.42743244]
[1717321814824,2.16189189,3778.8,3778.5,0.55]
[1717321815044,4.30110943,3779.1,3778.7,3.98841]
[1717321815045,0.57214519,3779.0,3778.7,3.98841]
[1717321815245,1.5897467,3779.5,3779.2,2.64604]
[1717321815438,1.5897467,3779.5,3779.4,2.64592]
[1717321815637,0.57203032,3779.9,3779.4,2.64592]
[1717321815849,4.30036943,3780.1,3779.5,0.55]
[1717321816048,1.65493943,3780.0,3779.5,0.55]
[1717321816254,2.64543,3780.1,3779.5,0.55]
[1717321816255,4.30036943,3780.1,3779.5,0.55]
[1717321816974,2.64543,3780.1,3779.5,0.55]
[1717321818283,3.0,3780.0,3779.5,0.55]
[1717321819270,3.0,3780.0,3779.5,0.869592]
[1717321819476,1.65493943,3780.4,3779.5,0.869592]
[1717321819634,7.31875514,3780.5,3779.9,2.64556]
[1717321819831,7.31875514,3780.5,3779.5,3.515382]
[1717321820246,0.02669034,3780.4,3779.5,3.515382]
[1717321820456,0.02669034,3780.4,3779.6,0.7162882]
[1717321820656,0.02669034,3780.4,3779.7,0.55]
[1717321821031,3.02669034,3780.4,3779.7,0.55]
[1717321821246,3.0,3780.4,3779.7,0.55]
[1717321823158,3.0,3780.4,3779.6,0.7162882]
[1717321823343,2.6453,3780.3,3779.5,2.64579]
[1717321823669,2.64566,3779.8,3778.7,2.64635]
[1717321824173,3.0,3779.7,3778.7,2.64635]
[1717321824507,3.0,3779.7,3778.7,3.138775]
[1717321826453,3.0,3779.7,3778.8,0.55]
[1717321828879,3.0,3779.7,3778.9,2.64624]
[1717321831879,0.05838934,3779.6,3778.9,2.64624]
[1717321832939,2.3237,3779.5,3778.9,2.64624]
[1717321833259,0.0581971,3779.4,3778.9,2.64624]
[1717321835125,0.05819042,3779.3,3778.9,2.64624]
[1717321835401,0.05819042,3779.3,3778.9,3.0151065]
[1717321835548,3.0,3779.7,3778.9,3.0151065]
[1717321835895,3.0,3779.7,3778.9,2.64624]
[1717321836067,0.05822838,3779.6,3778.9,2.64624]
[1717321841714,0.05822838,3779.6,3779.1,0.559]
[1717321843666,2.3872,3779.2,3777.8,2.54300426]
[1717321843912,2.6462,3779.0,3778.2,0.559]
[1717321844114,0.05296451,3778.9,3778.2,0.559]
[1717321844315,3.11108641,3778.9,3778.2,0.559]
[1717321844689,3.0581219,3778.9,3778.2,0.559]
[1717321845002,2.64636,3778.8,3778.2,0.559]
[1717321845602,2.70446924,3778.8,3778.2,0.559]
[1717321845990,2.70446924,3778.8,3777.9,0.25430043]
[1717321846196,2.70446924,3778.8,3777.8,2.257]
[1717321846197,2.70446924,3778.8,3778.4,0.559]
[1717321847521,2.70446924,3778.8,3778.1,2.64677]
[1717321847676,0.05810924,3778.8,3778.2,0.55]
[1717321848091,4.66097353,3779.1,3778.2,0.55]
[1717321848291,0.0579947,3778.7,3778.2,0.55]
[1717321848511,4.66097353,3779.1,3778.2,0.89479]
[1717321849015,0.05803267,3779.0,3778.2,0.89479]
[1717321850678,2.70429267,3779.0,3778.2,0.89479]
[1717321851024,3.0,3778.9,3778.2,0.55]
[1717321851312,0.05800736,3778.8,3778.2,0.55]
[1717321856696,0.05800736,3778.8,3778.3,2.64665]
[1717321856902,0.05800736,3778.8,3778.4,0.55]
[1717321857439,1.66097353,3779.0,3778.6,2.257]
[1717321857742,1.66097353,3779.4,3778.6,4.90348]
[1717321857905,0.05812438,3778.9,3778.7,0.55]
[1717321858092,1.66097353,3779.4,3778.7,0.55]
[1717321858435,0.05810344,3779.3,3778.7,0.55]
[1717321858738,4.30687353,3779.5,3778.8,0.545348]
[1717321858888,0.05816832,3779.2,3778.7,0.55]
[1717321859091,4.30687353,3779.5,3778.7,0.55]
[1717321859443,0.05819363,3779.4,3778.7,0.55]
[1717321859739,0.05819363,3779.4,3778.8,2.64632]
[1717321865040,0.05819363,3779.4,3778.7,0.55]
[1717321865537,2.64601,3779.3,3778.1,4.98246]
[1717321865708,2.64615,3779.1,3778.1,5.505819]
[1717321865911,0.05778875,3779.0,3778.1,5.505819]
[1717321866951,2.64639,3778.8,3777.7,2.64706]
[1717321867292,0.05770308,3778.7,3777.7,2.64706]
[1717321868309,0.05770308,3778.7,3777.8,0.55]
[1717321869043,0.05770308,3778.7,3777.9,2.64696]
[1717321869244,0.05770308,3778.7,3778.0,0.319696]
[1717321869808,0.05770308,3778.7,3778.3,0.56]
[1717321870097,4.30869031,3778.8,3778.3,0.56]
[1717321870336,0.05770308,3778.7,3778.3,0.56]
[1717321870695,2.64639,3778.8,3778.3,0.56]
[1717321871006,0.05769042,3778.6,3778.3,0.56]
[1717321871212,0.05770308,3778.7,3778.3,0.56]
[1717321871550,1.66230031,3778.8,3778.3,0.56]
[1717321871699,2.64613,3779.1,3778.3,0.56]
[1717321871700,0.05769042,3778.6,3778.3,0.56]
[1717321871899,4.66230031,3779.0,3778.5,0.56]
[1717321872214,0.05757332,3778.9,3778.5,0.56]
[1717321872738,0.05757332,3778.9,3778.7,0.56]
[1717321873807,0.05757332,3778.9,3778.7,0.880655]
[1717321874011,0.05757332,3778.9,3778.7,0.56]
[1717321874340,0.05756368,3778.8,3778.7,0.56]
[1717321874712,0.05756368,3778.8,3778.6,2.64642]
[1717321874898,4.66230031,3779.2,3778.7,0.56]
[1717321875097,1.66230031,3779.1,3778.7,0.56]
[1717321877149,1.66230031,3779.1,3778.9,0.56]
[1717321878645,1.66230031,3779.2,3778.9,0.880642]
[1717321878844,1.66230031,3779.5,3779.2,0.56]
[1717321879043,1.66230031,3779.5,3779.4,0.56]
[1717321879245,7.31875514,3780.1,3779.4,0.56]
[1717321879246,1.66230031,3779.8,3779.4,0.56]
[1717321879456,1.66230031,3779.9,3779.7,0.56]
[1717321879795,1.66230031,3780.0,3779.7,0.56]
[1717321880851,4.66230031,3780.0,3779.7,0.56]
[1717321881149,8.98105545,3780.1,3779.9,0.56]
[1717321881460,7.31875514,3780.1,3779.9,0.56]
[1717321881602,7.31875514,3780.1,3779.8,2.64563]
[1717321882151,8.98105545,3780.1,3779.8,2.64563]
[1717321882390,7.31875514,3780.1,3779.8,2.64563]
[1717321883680,1.66230031,3780.3,3779.8,2.64563]
[1717321883803,1.66230031,3780.3,3780.0,2.64548]
[1717321884005,1.66230031,3780.5,3780.0,2.64548]
[1717321884255,1.66230031,3780.6,3780.0,2.64548]
[1717321884452,1.66230031,3780.6,3780.1,0.55]
[1717321885113,4.66230031,3780.6,3780.1,0.55]
[1717321885319,8.98105545,3780.7,3780.2,2.64536]
[1717321885637,7.31875514,3780.7,3780.2,2.64536]
[1717321887545,7.31875514,3780.7,3780.3,0.55]
[1717321887751,7.31875514,3780.7,3780.4,2.6452]
[1717321889508,3.0,3781.1,3780.4,2.6452]
[1717321889739,3.0,3781.2,3780.4,2.6452]
[1717321891978,3.0,3781.2,3780.4,5.0874]
[1717321895180,2.64473,3781.1,3780.3,0.55]
[1717321895383,5.12639,3780.9,3780.1,0.55]
[1717321895599,2.64501,3780.7,3779.6,2.64576]
[1717321895773,2.4815,3780.9,3779.6,2.64576]
[1717321895774,2.64519,3780.5,3779.6,2.64576]
[1717321896200,0.05668467,3780.4,3779.6,2.64576]
[1717321896672,2.6453,3780.3,3779.3,2.4422]
[1717321896884,0.05650055,3780.2,3779.3,2.95102]
[1717321897877,0.05650055,3780.2,3779.4,0.55]
[1717321898692,0.10946506,3780.2,3779.4,0.55]
[1717321899221,2.64553,3780.0,3778.9,2.4422]
[1717321899384,2.64553,3780.0,3778.9,2.951052]
[1717321899713,0.0564331,3779.9,3778.9,2.951052]
[1717321900088,0.0564331,3779.9,3779.0,2.64615]
[1717321900475,3.0,3780.1,3779.0,2.64615]
[1717321900703,0.05618501,3779.8,3779.1,0.55]
[1717321900886,0.05617236,3779.7,3779.2,3.2607702]
[1717321901087,3.0,3780.1,3779.3,0.55]
[1717321901303,4.1397798,3780.6,3779.7,2.64566]
[1717321901503,11.97703494,3780.7,3779.8,0.55]
[1717321901717,10.31875514,3780.7,3779.8,0.55]
[1717321901923,0.05632198,3780.6,3779.8,0.55]
[1717321906031,2.6452,3780.5,3779.3,2.64594]
[1717321906187,0.10928649,3780.6,3779.3,2.64594]
[1717321906188,2.64533,3780.3,3779.3,2.64594]
[1717321906388,5.06423,3780.3,3779.3,2.64594]
[1717321906698,0.05638463,3780.2,3779.3,2.64594]
[1717321906905,0.05638463,3780.2,3779.3,3.158164]
[1717321907687,0.05638463,3780.2,3779.4,0.55]
[1717321909493,0.05638463,3780.2,3779.6,2.64575]
[1717321909692,2.4189,3780.1,3779.3,0.512224]
[1717321909993,0.10922849,3780.0,3779.1,5.12238]
[1717321910215,2.6456,3779.9,3779.1,2.64608]
[1717321910412,0.05296451,3779.8,3779.1,2.64608]
[1717321910597,0.10922703,3779.8,3779.1,2.64608]
[1717321911028,0.05626252,3779.8,3779.1,2.64608]
[1717321911238,2.64573,3779.7,3778.8,1.342]
[1717321911413,2.64573,3779.7,3778.8,1.988464]
[1717321911598,0.05619846,3779.6,3778.8,1.988464]
[1717321911803,0.05619846,3779.6,3778.8,0.646464]
[1717321915813,0.05619846,3779.6,3778.9,2.64625]
[1717321917245,0.10916297,3779.6,3778.9,2.64625]
[1717321921682,0.10916297,3779.6,3779.0,0.559]
[1717321921879,0.05619846,3779.6,3778.9,2.64625]
[1717321922181,0.10916297,3779.6,3779.2,0.559]
[1717321922368,2.64601,3779.3,3778.6,2.64647]
[1717321922570,2.64601,3779.3,3777.3,3.47484971]
[1717321922571,2.64601,3779.3,3778.7,0.559]
[1717321922744,0.10703069,3779.2,3778.7,0.559]
[1717321922948,0.10703069,3779.2,3778.2,2.64669]
[1717321923152,0.10703069,3779.2,3778.6,0.559]
[1717321923477,0.10703069,3779.2,3778.4,2.64661]
[1717321923641,0.10703069,3779.2,3778.5,0.55]
[1717321926096,0.05406618,3779.2,3778.5,0.55]
[1717321926670,0.10703069,3779.2,3778.5,0.55]
[1717321927390,2.64613,3779.1,3778.5,0.55]
[1717321927813,0.05390802,3779.0,3778.5,0.55]
[1717321937454,0.05390802,3779.0,3778.5,0.869661]
[1717321943679,0.05390802,3779.0,3778.6,0.559]
[1717321944866,0.05390802,3779.0,3778.8,0.559]
[1717321945231,3.0,3779.3,3778.8,0.559]
[1717321945429,2.4189,3779.4,3778.8,0.559]
[1717321945430,0.05346438,3778.9,3778.8,0.559]
[1717321945629,0.05296451,3779.3,3778.8,0.559]
[1717321945826,0.05346438,3778.9,3778.8,0.559]
[1717321946341,7.0800165,3779.4,3778.8,0.559]
[1717321946553,0.053515,3779.3,3778.8,0.559]
[1717321947151,0.053515,3779.3,3778.6,2.64641]
[1717321947386,1.7146315,3779.3,3778.9,0.559]
[1717321947560,4.7146315,3779.3,3778.9,0.559]
[1717321947956,3.053515,3779.3,3778.9,0.559]
[1717321948158,0.053515,3779.3,3778.9,0.559]
[1717321949106,0.053515,3779.3,3779.1,0.559]
[1717321949584,4.3070365,3779.5,3779.1,0.559]
[1717321949898,0.05351725,3779.2,3779.1,0.559]
[1717321950042,4.3070365,3779.5,3779.1,0.559]
[1717321950386,1.6611165,3779.4,3779.1,0.559]
[1717321950580,1.71465905,3779.4,3779.1,0.559]
[1717321953351,1.6611165,3779.3,3779.1,0.559]
[1717321953601,0.05344306,3779.2,3779.1,0.559]
[1717321954560,0.05344306,3779.2,3779.1,2.9857]
[1717321954858,1.6611165,3779.7,3779.1,3.83427]
[1717321955064,1.6611165,3779.7,3779.6,0.559]
[1717321956275,1.71283401,3779.7,3779.6,0.559]
[1717321959581,0.05171751,3779.7,3779.6,0.559]
[1717321959798,1.6611165,3779.8,3779.6,0.559]
[1717321959990,1.93796925,3780.1,3779.6,0.559]
[1717321959991,1.71123592,3779.7,3779.6,0.559]
[1717321961220,1.71123592,3779.7,3779.5,0.559]
[1717321961380,1.71123592,3779.7,3779.5,0.879493]
[1717321961583,0.05011942,3779.7,3779.5,0.879493]
[1717321961902,1.66436853,3779.8,3779.5,0.879493]
[1717321962080,4.94176328,3780.1,3779.3,2.64593]
[1717321962081,0.05010082,3779.6,3779.3,2.64593]
[1717321962418,1.66436853,3779.7,3779.5,0.559]
[1717321966925,1.66436853,3779.7,3779.4,0.55]
[1717321967133,1.66436853,3779.7,3779.4,1.109]
[1717321969734,1.66436853,3779.8,3779.4,1.109]
[1717321971135,1.66436853,3779.8,3779.4,0.55]
[1717321971342,0.05008657,3779.7,3779.5,0.559]
[1717321971536,1.66436853,3779.8,3779.5,0.559]
[1717321971729,0.05008657,3779.7,3779.5,0.559]
[1717321971926,1.66436853,3779.8,3779.4,0.55]
[1717321972119,1.7144551,3779.7,3779.4,1.109]
[1717321973439,0.05008657,3779.7,3779.4,1.109]
[1717321973806,1.66436853,3779.8,3779.4,1.109]
[1717321974005,0.05007392,3779.6,3779.4,1.109]
[1717321974227,1.66436853,3779.8,3779.4,1.109]
[1717321974537,0.05006126,3779.5,3779.4,1.109]
[1717321974701,1.66436853,3779.8,3779.4,1.109]
[1717321975114,0.05008657,3779.7,3779.4,1.109]
[1717321975344,1.66436853,3779.8,3779.4,1.109]
[1717321975748,0.05008657,3779.7,3779.4,1.109]
[1717321975921,1.66436853,3779.8,3779.4,1.109]
[1717321976253,0.05008657,3779.7,3779.4,0.55]
[1717321976433,0.05008657,3779.7,3779.4,1.109]
[1717321976638,1.66436853,3779.8,3779.4,1.109]
[1717321976853,0.05007392,3779.6,3779.4,1.109]
[1717321977143,1.66436853,3779.7,3779.4,1.109]
[1717321977345,0.04838711,3779.5,3779.4,1.109]
[1717321977545,1.66436853,3779.8,3779.4,1.109]
[1717321978113,0.04841241,3779.7,3779.4,1.109]
[1717321978432,1.66436853,3779.8,3779.4,1.109]
[1717321978742,0.04839976,3779.6,3779.4,1.109]
[1717321978944,1.66436853,3779.8,3779.4,1.109]
[1717321979109,0.04838711,3779.5,3779.4,1.109]
[1717321979309,1.66436853,3779.8,3779.4,1.109]
[1717321979846,0.04841241,3779.7,3779.4,1.109]
[1717321980214,1.66436853,3779.8,3779.4,1.109]
[1717321980414,0.04839976,3779.6,3779.4,1.109]
[1717321980611,1.66436853,3779.8,3779.4,1.109]
[1717321980861,0.04838711,3779.5,3779.4,1.109]
[1717321981453,1.66436853,3779.8,3779.4,1.109]
[1717321981612,0.04838711,3779.5,3779.4,1.109]
[1717321981912,1.66436853,3779.8,3779.4,1.109]
[1717321982617,0.04841241,3779.7,3779.4,1.109]
[1717321983054,1.66436853,3779.8,3779.4,1.109]
[1717321983651,0.04840348,3779.7,3779.4,1.109]
[1717321983958,1.66436853,3779.8,3779.4,1.109]
[1717321984271,0.04840348,3779.7,3779.4,1.109]
[1717321984628,1.66436853,3779.8,3779.4,1.109]
[1717321984838,0.04839083,3779.6,3779.4,1.109]
[1717321985168,0.04837818,3779.5,3779.4,1.109]
[1717321985371,1.66436853,3779.8,3779.4,1.109]
[1717321985573,0.04840348,3779.7,3779.4,1.109]
[1717321985774,1.66436853,3779.8,3779.4,1.109]
[1717321985948,0.04840348,3779.7,3779.4,1.109]
[1717321986152,1.66436853,3779.8,3779.4,1.109]
[1717321986340,0.04840348,3779.7,3779.4,1.109]
[1717321986535,1.66436853,3779.8,3779.4,1.109]
[1717321986736,0.04840348,3779.7,3779.4,1.109]
[1717321986935,1.66436853,3779.8,3779.4,1.109]
[1717321987251,1.71277201,3779.7,3779.4,1.109]
[1717321993301,1.66436853,3779.6,3779.4,1.109]
[1717321993673,0.04837818,3779.5,3779.4,1.109]
[1717321995078,1.66436853,3779.7,3779.4,1.109]
[1717321995281,0.04830055,3779.5,3779.4,1.109]
[1717321995500,1.66436853,3779.6,3779.4,1.727163]
[1717321995713,0.04830055,3779.5,3779.4,1.727163]
[1717321998526,1.71266908,3779.5,3779.4,1.727163]
[1717321998727,1.71266908,3779.5,3779.4,1.109]
[1717321998931,1.71266908,3779.5,3779.4,0.55]
[1717321999094,1.71266908,3779.5,3779.4,1.109]
[1717321999294,1.71266908,3779.5,3779.4,0.55]
[1717321999494,1.71266908,3779.5,3779.4,1.109]
[1717322001032,1.71266908,3779.5,3779.4,0.55]
[1717322003243,2.4675,3779.4,3778.6,2.64641]
[1717322003459,1.66780266,3779.2,3778.6,2.64641]
[1717322003605,1.66780266,3779.0,3778.6,2.64641]
[1717322003810,0.04511073,3778.9,3778.6,2.64641]
[1717322004044,0.04511073,3778.9,3778.6,2.97295047]
[1717322004217,0.04511073,3778.9,3778.8,0.559]
[1717322004553,1.66780266,3779.1,3778.8,0.559]
[1717322005042,0.04513088,3779.0,3778.8,0.559]
[1717322008752,1.66780266,3779.2,3778.8,0.559]
[1717322008953,0.04492266,3778.9,3778.6,2.97295047]
[1717322009138,1.66780266,3779.1,3778.8,0.559]
[1717322009309,1.66780266,3779.1,3779.0,0.559]
[1717322009647,1.66780266,3779.2,3779.0,0.559]
[1717322011918,1.66780266,3779.3,3779.0,0.559]
[1717322015960,1.66780266,3779.2,3779.0,0.559]
[1717322016159,1.66602818,3779.2,3779.0,0.559]
[1717322016363,0.04494316,3779.1,3779.0,0.559]
[1717322017253,1.66602818,3779.3,3778.7,0.55]
[1717322017453,0.04498638,3779.1,3778.9,2.3387]
[1717322017651,0.04499903,3779.2,3778.9,2.3387]
[1717322017841,0.04497372,3779.0,3778.9,2.3387]
[1717322018058,1.66602818,3779.3,3778.9,2.3387]
[1717322018258,0.04497372,3779.0,3778.9,2.3387]
[1717322018458,4.31194818,3779.4,3778.9,2.9241751]
[1717322018756,0.04497372,3779.0,3778.9,2.9241751]
[1717322019170,1.66602818,3779.3,3778.9,2.9241751]
[1717322019370,0.04497372,3779.0,3778.9,2.3387]
[1717322020356,1.66602818,3779.3,3778.9,2.3387]
[1717322020900,0.04499903,3779.2,3778.9,2.3387]
[1717322022988,1.66602818,3779.4,3778.9,2.3387]
[1717322023191,0.04508231,3779.1,3778.9,2.3387]
[1717322023397,1.66602818,3779.4,3778.9,2.9241751]
[1717322023605,0.04506965,3779.0,3778.9,2.9241751]
[1717322023763,1.66602818,3779.4,3778.9,2.9241751]
[1717322023962,0.04506965,3779.0,3778.9,2.9241751]
[1717322024296,0.04506965,3779.0,3778.9,5.5704451]
[1717322024497,0.04506965,3779.0,3778.9,6.1204451]
[1717322024704,7.31875514,3779.6,3778.9,6.1204451]
[1717322024705,1.66602818,3779.4,3778.9,6.1204451]
[1717322024861,1.66602818,3779.4,3779.0,0.55]